[Event "Titled Tuesday Blitz March 08 Early 2022"]
[White "Guseva, Marina"]
[Black "Quirke, Jeffrey"]
[WhiteFideId "4149351"]
[BlackFideId "2013029"]
[WhiteElo "2160"]
[BlackElo "2117"]
[Result "1-0"]
[Round "02"]
[TimeControl "180+1"]
[Date "2022.03.09"]
[WhiteClock "0:00:26"]
[BlackClock "0:00:02"]

1. d4 {[%clk 0:03:00]}  d5 {[%clk 0:02:59]} 2. Nf3 {[%clk 0:02:59]}  c5 {[%clk 0:02:59]} 3. c4 {[%clk 0:02:42]}  cxd4 {[%clk 0:02:58]} 4. cxd5 {[%clk 0:02:42]}  Qxd5 {[%clk 0:02:50]} 5. Qxd4 {[%clk 0:02:41]}  Qxd4 {[%clk 0:02:47]} 6. Nxd4 {[%clk 0:02:41]}  a6 {[%clk 0:02:47]} 7. g3 {[%clk 0:02:40]}  e5 {[%clk 0:02:38]} 8. Nb3 {[%clk 0:02:39]}  Nc6 {[%clk 0:02:37]} 9. Bg2 {[%clk 0:02:39]}  Nf6 {[%clk 0:02:24]} 10. Nc3 {[%clk 0:02:36]}  Be7 {[%clk 0:02:13]} 11. O-O {[%clk 0:02:34]}  O-O {[%clk 0:02:12]} 12. Bg5 {[%clk 0:02:30]}  Be6 {[%clk 0:02:02]} 13. Bxf6 {[%clk 0:02:29]}  gxf6 {[%clk 0:02:01]} 14. Nd5 {[%clk 0:02:07]}  Bxd5 {[%clk 0:01:56]} 15. Bxd5 {[%clk 0:02:06]}  a5 {[%clk 0:01:16]} 16. Bxc6 {[%clk 0:01:58]}  bxc6 {[%clk 0:01:15]} 17. Nd2 {[%clk 0:01:58]}  a4 {[%clk 0:01:09]} 18. Nc4 {[%clk 0:01:56]}  a3 {[%clk 0:01:04]} 19. b3 {[%clk 0:01:56]}  Rfd8 {[%clk 0:00:45]} 20. Rac1 {[%clk 0:01:55]}  Bb4 {[%clk 0:00:19]} 21. Rc2 {[%clk 0:01:54]}  Rab8 {[%clk 0:00:15]} 22. Rfc1 {[%clk 0:01:53]}  c5 {[%clk 0:00:14]} 23. Kf1 {[%clk 0:01:40]}  Kf8 {[%clk 0:00:14]} 24. e3 {[%clk 0:01:28]}  Ke7 {[%clk 0:00:14]} 25. Ke2 {[%clk 0:01:28]}  Ke6 {[%clk 0:00:15]} 26. Rd1 {[%clk 0:01:27]}  f5 {[%clk 0:00:14]} 27. Rxd8 {[%clk 0:01:25]}  Rxd8 {[%clk 0:00:14]} 28. Nb6 {[%clk 0:01:08]}  e4 {[%clk 0:00:12]} 29. Nc4 {[%clk 0:01:04]}  Rd5 {[%clk 0:00:11]} 30. f3 {[%clk 0:01:02]}  Rd3 {[%clk 0:00:09]} 31. f4 {[%clk 0:00:42]}  Rd5 {[%clk 0:00:08]} 32. Nd2 {[%clk 0:00:35]}  h5 {[%clk 0:00:06]} 33. Nb1 {[%clk 0:00:33]}  Rd3 {[%clk 0:00:04]} 34. Nd2 {[%clk 0:00:31]}  Rd5 {[%clk 0:00:04]} 35. Nc4 {[%clk 0:00:31]}  Rd3 {[%clk 0:00:04]} 36. Ne5 {[%clk 0:00:30]}  Rd5 {[%clk 0:00:03]} 37. Nc6 {[%clk 0:00:30]}  Rd3 {[%clk 0:00:02]} 38. Nxb4 {[%clk 0:00:27]}  cxb4 {[%clk 0:00:02]} 39. Rc4 {[%clk 0:00:27]}  Rc3 {[%clk 0:00:01]} 40. Rxc3 {[%clk 0:00:26]}  bxc3 {[%clk 0:00:02]} 41. Kd1 {[%clk 0:00:26]}  Kd5 {[%clk 0:00:02]} 42. Kc2 {[%clk 0:00:26]}  Kc5 {[%clk 0:00:02]} 43. Kxc3 {[%clk 0:00:26]} 1-0


[Site "https://www.chess.com"]

[Event "Titled Tuesday Blitz March 08 Early 2022"]
[White "Heinemann, Josefine"]
[Black "Antonio, Jorge Carlos"]
[WhiteFideId "12900460"]
[BlackFideId "113190"]
[WhiteElo "2300"]
[BlackElo "2247"]
[Result "0-1"]
[Round "02"]
[TimeControl "180+1"]
[Date "2022.03.09"]
[WhiteClock "0:00:12"]
[BlackClock "0:00:15"]

1. Nf3 {[%clk 0:02:55]}  d5 {[%clk 0:02:58]} 2. g3 {[%clk 0:02:55]}  c5 {[%clk 0:02:56]} 3. Bg2 {[%clk 0:02:54]}  Nc6 {[%clk 0:02:56]} 4. d4 {[%clk 0:02:55]}  Bg4 {[%clk 0:02:54]} 5. dxc5 {[%clk 0:02:47]}  e5 {[%clk 0:02:28]} 6. c4 {[%clk 0:02:30]}  d4 {[%clk 0:02:24]} 7. Qa4 {[%clk 0:02:26]}  Bd7 {[%clk 0:02:20]} 8. Qc2 {[%clk 0:02:18]}  f5 {[%clk 0:02:15]} 9. O-O {[%clk 0:02:12]}  Bxc5 {[%clk 0:02:09]} 10. e3 {[%clk 0:02:10]}  d3 {[%clk 0:02:03]} 11. Qxd3 {[%clk 0:01:50]}  e4 {[%clk 0:02:02]} 12. Qc3 {[%clk 0:01:51]}  exf3 {[%clk 0:01:57]} 13. Qxg7 {[%clk 0:01:50]}  fxg2 {[%clk 0:01:46]} 14. Rd1 {[%clk 0:01:49]}  Qe7 {[%clk 0:01:32]} 15. Qxh8 {[%clk 0:01:48]}  O-O-O {[%clk 0:01:28]} 16. Qc3 {[%clk 0:01:34]}  h5 {[%clk 0:01:23]} 17. a3 {[%clk 0:01:32]}  h4 {[%clk 0:01:22]} 18. b4 {[%clk 0:01:32]}  Bd6 {[%clk 0:01:19]} 19. Bb2 {[%clk 0:01:30]}  h3 {[%clk 0:01:14]} 20. Nd2 {[%clk 0:01:27]}  Be5 {[%clk 0:01:13]} 21. Qc2 {[%clk 0:01:26]}  Bxb2 {[%clk 0:01:12]} 22. Qxb2 {[%clk 0:01:25]}  Qe5 {[%clk 0:01:12]} 23. Qc2 {[%clk 0:01:18]}  Nf6 {[%clk 0:01:10]} 24. Nf3 {[%clk 0:01:14]}  Qe4 {[%clk 0:01:09]} 25. Qxe4 {[%clk 0:01:00]}  fxe4 {[%clk 0:01:08]} 26. Ng5 {[%clk 0:01:00]}  Ne5 {[%clk 0:01:05]} 27. f4 {[%clk 0:00:54]}  Neg4 {[%clk 0:01:01]} 28. Re1 {[%clk 0:00:39]}  Bf5 {[%clk 0:00:58]} 29. Nxh3 {[%clk 0:00:34]}  Rd2 {[%clk 0:00:54]} 30. Ng5 {[%clk 0:00:29]}  Rd3 {[%clk 0:00:48]} 31. a4 {[%clk 0:00:18]}  Nxe3 {[%clk 0:00:47]} 32. h3 {[%clk 0:00:17]}  Nc2 {[%clk 0:00:42]} 33. Rac1 {[%clk 0:00:17]}  Nxe1 {[%clk 0:00:41]} 34. Rxe1 {[%clk 0:00:18]}  e3 {[%clk 0:00:41]} 35. g4 {[%clk 0:00:18]}  Be4 {[%clk 0:00:40]} 36. Nxe4 {[%clk 0:00:17]}  Nxe4 {[%clk 0:00:40]} 37. Kxg2 {[%clk 0:00:18]}  Nc3 {[%clk 0:00:35]} 38. g5 {[%clk 0:00:18]}  e2 {[%clk 0:00:36]} 39. g6 {[%clk 0:00:18]}  Rd1 {[%clk 0:00:31]} 40. Kf2 {[%clk 0:00:18]}  Rd7 {[%clk 0:00:26]} 41. h4 {[%clk 0:00:17]}  Kd8 {[%clk 0:00:25]} 42. h5 {[%clk 0:00:17]}  Ke7 {[%clk 0:00:25]} 43. h6 {[%clk 0:00:18]}  Kf6 {[%clk 0:00:23]} 44. h7 {[%clk 0:00:16]}  Rd8 {[%clk 0:00:23]} 45. f5 {[%clk 0:00:15]}  Ne4+ {[%clk 0:00:18]} 46. Ke3 {[%clk 0:00:15]}  Nd6 {[%clk 0:00:16]} 47. Kxe2 {[%clk 0:00:13]}  Nxf5 {[%clk 0:00:16]} 48. Rf1 {[%clk 0:00:13]}  Kxg6 {[%clk 0:00:15]} 49. Rg1+ {[%clk 0:00:13]}  Kf6 {[%clk 0:00:14]} 50. Rh1 {[%clk 0:00:12]}  Ng3+ {[%clk 0:00:14]} 51. Kf3 {[%clk 0:00:12]}  Nxh1 {[%clk 0:00:14]} 52. c5 {[%clk 0:00:13]}  Kg7 {[%clk 0:00:14]} 53. b5 {[%clk 0:00:12]}  Kxh7 {[%clk 0:00:15]} 54. c6 {[%clk 0:00:12]} 0-1


[Site "https://www.chess.com"]

[Event "Titled Tuesday Blitz March 08 Early 2022"]
[White "Ianov, Viktor"]
[Black "Vakhlamov, Igor L."]
[WhiteFideId "14102730"]
[BlackFideId "24126748"]
[WhiteElo "2161"]
[BlackElo "2401"]
[Result "0-1"]
[Round "02"]
[TimeControl "180+1"]
[Date "2022.03.09"]
[WhiteClock "0:00:18"]
[BlackClock "0:00:10"]

1. Nf3 {[%clk 0:02:55]}  Nf6 {[%clk 0:02:59]} 2. g3 {[%clk 0:02:54]}  g6 {[%clk 0:02:58]} 3. b3 {[%clk 0:02:53]}  Bg7 {[%clk 0:02:57]} 4. Bb2 {[%clk 0:02:54]}  O-O {[%clk 0:02:58]} 5. Bg2 {[%clk 0:02:54]}  c5 {[%clk 0:02:58]} 6. c4 {[%clk 0:02:53]}  Nc6 {[%clk 0:02:57]} 7. O-O {[%clk 0:02:53]}  d6 {[%clk 0:02:55]} 8. d4 {[%clk 0:02:53]}  cxd4 {[%clk 0:02:56]} 9. Nxd4 {[%clk 0:02:53]}  Bd7 {[%clk 0:02:56]} 10. Nc2 {[%clk 0:02:53]}  Qc8 {[%clk 0:02:53]} 11. Re1 {[%clk 0:02:51]}  a6 {[%clk 0:02:50]} 12. Nc3 {[%clk 0:02:50]}  Bh3 {[%clk 0:02:47]} 13. Bh1 {[%clk 0:02:50]}  Qg4 {[%clk 0:02:46]} 14. Ne3 {[%clk 0:02:43]}  Qh5 {[%clk 0:02:45]} 15. Qd2 {[%clk 0:02:42]}  Bh6 {[%clk 0:02:37]} 16. Bf3 {[%clk 0:02:39]}  Bg4 {[%clk 0:02:35]} 17. Bg2 {[%clk 0:02:32]}  Rfd8 {[%clk 0:02:18]} 18. Rad1 {[%clk 0:02:29]}  Rac8 {[%clk 0:02:17]} 19. Ncd5 {[%clk 0:02:25]}  Nxd5 {[%clk 0:02:15]} 20. Bxd5 {[%clk 0:02:18]}  Be6 {[%clk 0:01:46]} 21. Qc3 {[%clk 0:02:12]}  Ne5 {[%clk 0:01:46]} 22. Bxb7 {[%clk 0:02:07]}  Bxe3 {[%clk 0:01:38]} 23. fxe3 {[%clk 0:01:58]}  Rc7 {[%clk 0:01:31]} 24. Bg2 {[%clk 0:01:55]}  f6 {[%clk 0:01:28]} 25. Rd4 {[%clk 0:01:50]}  g5 {[%clk 0:01:27]} 26. h4 {[%clk 0:01:48]}  h6 {[%clk 0:01:26]} 27. Qd2 {[%clk 0:01:39]}  Rdc8 {[%clk 0:01:25]} 28. Re4 {[%clk 0:01:33]}  Bf5 {[%clk 0:01:21]} 29. Rd4 {[%clk 0:01:32]}  Bd7 {[%clk 0:01:21]} 30. e4 {[%clk 0:01:26]}  Be6 {[%clk 0:01:14]} 31. hxg5 {[%clk 0:01:22]}  hxg5 {[%clk 0:01:13]} 32. Qe3 {[%clk 0:01:19]}  Kg7 {[%clk 0:01:11]} 33. Bf3 {[%clk 0:01:17]}  Qh3 {[%clk 0:01:08]} 34. Qf2 {[%clk 0:01:16]}  Rh8 {[%clk 0:01:08]} 35. Bg2 {[%clk 0:01:00]}  Qh2+ {[%clk 0:01:06]} 36. Kf1 {[%clk 0:01:00]}  Bh3 {[%clk 0:00:56]} 37. Bxh3 {[%clk 0:00:55]}  Qh1+ {[%clk 0:00:51]} 38. Qg1 {[%clk 0:00:55]}  Rxh3 {[%clk 0:00:51]} 39. Rdd1 {[%clk 0:00:46]}  Qxe4 {[%clk 0:00:21]} 40. Bxe5 {[%clk 0:00:40]}  fxe5 {[%clk 0:00:13]} 41. Qg2 {[%clk 0:00:37]}  Qg4 {[%clk 0:00:07]} 42. Kf2 {[%clk 0:00:34]}  Rc8 {[%clk 0:00:07]} 43. Rg1 {[%clk 0:00:32]}  Rch8 {[%clk 0:00:06]} 44. Rd3 {[%clk 0:00:29]}  Rh2 {[%clk 0:00:06]} 45. Rf3 {[%clk 0:00:28]}  Rxg2+ {[%clk 0:00:06]} 46. Rxg2 {[%clk 0:00:28]}  e4 {[%clk 0:00:07]} 47. Re3 {[%clk 0:00:28]}  Rh1 {[%clk 0:00:07]} 48. Rg1 {[%clk 0:00:25]}  Rh2+ {[%clk 0:00:07]} 49. Rg2 {[%clk 0:00:26]}  Rxg2+ {[%clk 0:00:07]} 50. Kxg2 {[%clk 0:00:25]}  e6 {[%clk 0:00:08]} 51. Kf2 {[%clk 0:00:26]}  d5 {[%clk 0:00:08]} 52. cxd5 {[%clk 0:00:25]}  exd5 {[%clk 0:00:09]} 53. Rc3 {[%clk 0:00:26]}  d4 {[%clk 0:00:09]} 54. Rc7+ {[%clk 0:00:25]}  Kg8 {[%clk 0:00:10]} 55. Rc6 {[%clk 0:00:23]}  e3+ {[%clk 0:00:10]} 56. Kf1 {[%clk 0:00:21]}  Qxg3 {[%clk 0:00:09]} 57. Rf6 {[%clk 0:00:21]}  Kg7 {[%clk 0:00:08]} 58. Rf5 {[%clk 0:00:21]}  Qc7 {[%clk 0:00:08]} 59. Kg2 {[%clk 0:00:20]}  Kg6 {[%clk 0:00:08]} 60. Rf3 {[%clk 0:00:19]}  Qc6 {[%clk 0:00:08]} 61. Kg3 {[%clk 0:00:19]}  Qd6+ {[%clk 0:00:08]} 62. Kg2 {[%clk 0:00:19]}  Qd5 {[%clk 0:00:09]} 63. Kg3 {[%clk 0:00:19]}  Qe5+ {[%clk 0:00:10]} 64. Kg2 {[%clk 0:00:19]}  Qe4 {[%clk 0:00:10]} 65. Kg3 {[%clk 0:00:19]}  d3 {[%clk 0:00:10]} 66. exd3 {[%clk 0:00:18]}  Qxd3 {[%clk 0:00:10]} 0-1


[Site "https://www.chess.com"]

[Event "Titled Tuesday Blitz March 08 Early 2022"]
[White "Iljin, Timofey"]
[Black "Johnson, Ben"]
[WhiteFideId "14110180"]
[BlackFideId "2010917"]
[WhiteElo "2396"]
[BlackElo "2202"]
[Result "1-0"]
[Round "02"]
[TimeControl "180+1"]
[Date "2022.03.09"]
[WhiteClock "0:00:48"]
[BlackClock "0:00:01"]

1. e4 {[%clk 0:03:00]}  c5 {[%clk 0:03:00]} 2. c3 {[%clk 0:03:00]}  Nf6 {[%clk 0:02:59]} 3. e5 {[%clk 0:03:00]}  Nd5 {[%clk 0:02:59]} 4. d4 {[%clk 0:03:00]}  cxd4 {[%clk 0:02:59]} 5. cxd4 {[%clk 0:03:01]}  Nc6 {[%clk 0:02:58]} 6. Nf3 {[%clk 0:03:01]}  d6 {[%clk 0:02:58]} 7. Bc4 {[%clk 0:03:01]}  Nb6 {[%clk 0:02:50]} 8. Bxf7+ {[%clk 0:03:02]}  Kxf7 {[%clk 0:02:50]} 9. e6+ {[%clk 0:03:02]}  Kxe6 {[%clk 0:02:02]} 10. Ng5+ {[%clk 0:03:01]}  Kd7 {[%clk 0:02:03]} 11. Nf7 {[%clk 0:03:01]}  Qe8 {[%clk 0:02:04]} 12. Nxh8 {[%clk 0:03:02]}  g6 {[%clk 0:02:01]} 13. a4 {[%clk 0:02:48]}  Bg7 {[%clk 0:01:53]} 14. d5 {[%clk 0:02:37]}  Nd4 {[%clk 0:01:40]} 15. Be3 {[%clk 0:02:09]}  Qxh8 {[%clk 0:01:32]} 16. O-O {[%clk 0:02:08]}  Nxd5 {[%clk 0:01:25]} 17. Bc1 {[%clk 0:01:57]}  Kc7 {[%clk 0:01:17]} 18. Na3 {[%clk 0:01:52]}  a6 {[%clk 0:01:12]} 19. Be3 {[%clk 0:01:45]}  Bf5 {[%clk 0:01:01]} 20. Rc1+ {[%clk 0:01:41]}  Kd7 {[%clk 0:00:55]} 21. Nc4 {[%clk 0:01:33]}  Rc8 {[%clk 0:00:54]} 22. Bxd4 {[%clk 0:01:29]}  Bxd4 {[%clk 0:00:53]} 23. Qb3 {[%clk 0:01:30]}  Rc7 {[%clk 0:00:41]} 24. Rfd1 {[%clk 0:01:30]}  Nb6 {[%clk 0:00:33]} 25. Nxb6+ {[%clk 0:01:24]}  Bxb6 {[%clk 0:00:34]} 26. Qxb6 {[%clk 0:01:23]}  Qc8 {[%clk 0:00:24]} 27. Qe3 {[%clk 0:01:06]}  Rc4 {[%clk 0:00:16]} 28. b3 {[%clk 0:01:03]}  Rxc1 {[%clk 0:00:13]} 29. Rxc1 {[%clk 0:01:02]}  Qb8 {[%clk 0:00:09]} 30. Qd4 {[%clk 0:00:58]}  e5 {[%clk 0:00:06]} 31. Qd5 {[%clk 0:00:57]}  Be6 {[%clk 0:00:05]} 32. Qf3 {[%clk 0:00:55]}  d5 {[%clk 0:00:04]} 33. Qf6 {[%clk 0:00:51]}  Qd6 {[%clk 0:00:04]} 34. Qg7+ {[%clk 0:00:49]}  Kd8 {[%clk 0:00:01]} 35. Qh8+ {[%clk 0:00:48]} 1-0


[Site "https://www.chess.com"]

[Event "Titled Tuesday Blitz March 08 Early 2022"]
[White "Izoria, Zviad"]
[Black "Skliarov, Viktor"]
[WhiteFideId "13601733"]
[BlackFideId "14106736"]
[WhiteElo "2626"]
[BlackElo "2229"]
[Result "1-0"]
[Round "02"]
[TimeControl "180+1"]
[Date "2022.03.08"]
[WhiteClock "0:00:13"]
[BlackClock "0:00:07"]

1. Nf3 {[%clk 0:03:00]}  g6 {[%clk 0:02:59]} 2. e4 {[%clk 0:02:56]}  c5 {[%clk 0:02:59]} 3. c4 {[%clk 0:02:48]}  Bg7 {[%clk 0:02:59]} 4. d4 {[%clk 0:02:48]}  cxd4 {[%clk 0:03:00]} 5. Nxd4 {[%clk 0:02:49]}  Nc6 {[%clk 0:03:00]} 6. Be3 {[%clk 0:02:49]}  Nf6 {[%clk 0:03:01]} 7. Nc3 {[%clk 0:02:48]}  Ng4 {[%clk 0:03:02]} 8. Qxg4 {[%clk 0:02:48]}  Nxd4 {[%clk 0:03:02]} 9. Qd1 {[%clk 0:02:48]}  Ne6 {[%clk 0:03:03]} 10. Rc1 {[%clk 0:02:43]}  Qa5 {[%clk 0:03:03]} 11. Qd2 {[%clk 0:02:27]}  d6 {[%clk 0:03:03]} 12. Be2 {[%clk 0:02:25]}  b6 {[%clk 0:03:00]} 13. O-O {[%clk 0:02:13]}  Bb7 {[%clk 0:03:00]} 14. Rfd1 {[%clk 0:01:44]}  Bxc3 {[%clk 0:02:50]} 15. Rxc3 {[%clk 0:01:45]}  Bxe4 {[%clk 0:02:51]} 16. Bh6 {[%clk 0:01:25]}  g5 {[%clk 0:01:57]} 17. Re1 {[%clk 0:00:47]}  Qf5 {[%clk 0:01:36]} 18. Re3 {[%clk 0:00:38]}  Bc6 {[%clk 0:00:58]} 19. Bd3 {[%clk 0:00:26]}  Qf6 {[%clk 0:00:56]} 20. Rxe6 {[%clk 0:00:21]}  fxe6 {[%clk 0:00:56]} 21. Bxg5 {[%clk 0:00:22]}  Qf7 {[%clk 0:00:46]} 22. Qe3 {[%clk 0:00:18]}  e5 {[%clk 0:00:43]} 23. f4 {[%clk 0:00:14]}  O-O-O {[%clk 0:00:27]} 24. Be4 {[%clk 0:00:14]}  Kc7 {[%clk 0:00:15]} 25. fxe5 {[%clk 0:00:12]}  Rhg8 {[%clk 0:00:12]} 26. exd6+ {[%clk 0:00:11]}  Rxd6 {[%clk 0:00:12]} 27. Bf4 {[%clk 0:00:11]}  Qg7 {[%clk 0:00:05]} 28. Bxd6+ {[%clk 0:00:09]}  exd6 {[%clk 0:00:05]} 29. Bxc6 {[%clk 0:00:08]}  Kxc6 {[%clk 0:00:06]} 30. Qe4+ {[%clk 0:00:08]}  Kc7 {[%clk 0:00:06]} 31. b3 {[%clk 0:00:08]}  Rd8 {[%clk 0:00:04]} 32. Qe7+ {[%clk 0:00:08]}  Rd7 {[%clk 0:00:04]} 33. Qxg7 {[%clk 0:00:07]}  Rxg7 {[%clk 0:00:05]} 34. Re6 {[%clk 0:00:07]}  a5 {[%clk 0:00:06]} 35. Rh6 {[%clk 0:00:07]}  Kc6 {[%clk 0:00:06]} 36. Rh5 {[%clk 0:00:07]}  Rf7 {[%clk 0:00:05]} 37. g3 {[%clk 0:00:07]}  Kc7 {[%clk 0:00:05]} 38. a4 {[%clk 0:00:07]}  Kc6 {[%clk 0:00:06]} 39. Kg2 {[%clk 0:00:07]}  Kc7 {[%clk 0:00:06]} 40. g4 {[%clk 0:00:07]}  Kc6 {[%clk 0:00:06]} 41. h3 {[%clk 0:00:08]}  Kc7 {[%clk 0:00:06]} 42. Kg3 {[%clk 0:00:08]}  Kc6 {[%clk 0:00:06]} 43. h4 {[%clk 0:00:08]}  Kc7 {[%clk 0:00:05]} 44. Rb5 {[%clk 0:00:08]}  Kc6 {[%clk 0:00:06]} 45. g5 {[%clk 0:00:08]}  Rf1 {[%clk 0:00:06]} 46. Kg4 {[%clk 0:00:09]}  Rh1 {[%clk 0:00:04]} 47. h5 {[%clk 0:00:08]}  Rg1+ {[%clk 0:00:04]} 48. Kf5 {[%clk 0:00:09]}  Rh1 {[%clk 0:00:04]} 49. h6 {[%clk 0:00:09]}  Rf1+ {[%clk 0:00:04]} 50. Ke6 {[%clk 0:00:09]}  Rf3 {[%clk 0:00:04]} 51. Rf5 {[%clk 0:00:08]}  Rxb3 {[%clk 0:00:03]} 52. Kf7 {[%clk 0:00:09]}  Rc3 {[%clk 0:00:02]} 53. Kg7 {[%clk 0:00:09]}  Rxc4 {[%clk 0:00:03]} 54. Kxh7 {[%clk 0:00:09]}  Rxa4 {[%clk 0:00:04]} 55. g6 {[%clk 0:00:09]}  Rg4 {[%clk 0:00:05]} 56. g7 {[%clk 0:00:10]}  a4 {[%clk 0:00:06]} 57. g8=Q {[%clk 0:00:10]}  Rxg8 {[%clk 0:00:06]} 58. Kxg8 {[%clk 0:00:11]}  a3 {[%clk 0:00:07]} 59. Rf1 {[%clk 0:00:11]}  a2 {[%clk 0:00:07]} 60. h7 {[%clk 0:00:12]}  b5 {[%clk 0:00:07]} 61. Ra1 {[%clk 0:00:13]} 1-0


[Site "https://www.chess.com"]

[Event "Titled Tuesday Blitz March 08 Early 2022"]
[White "Jaskolka, Tomasz"]
[Black "Abdyzhapar, Asylbek"]
[WhiteFideId "1170791"]
[BlackFideId "13800337"]
[WhiteElo "2073"]
[BlackElo "2331"]
[Result "0-1"]
[Round "02"]
[TimeControl "180+1"]
[Date "2022.03.09"]
[WhiteClock "0:00:06"]
[BlackClock "0:00:35"]

1. d4 {[%clk 0:02:48]}  d5 {[%clk 0:02:58]} 2. Bf4 {[%clk 0:02:48]}  Nf6 {[%clk 0:02:58]} 3. e3 {[%clk 0:02:49]}  e6 {[%clk 0:02:58]} 4. c3 {[%clk 0:02:49]}  Bd6 {[%clk 0:02:59]} 5. Bg3 {[%clk 0:02:49]}  O-O {[%clk 0:02:59]} 6. Nd2 {[%clk 0:02:50]}  c5 {[%clk 0:02:59]} 7. Ngf3 {[%clk 0:02:50]}  Qc7 {[%clk 0:02:59]} 8. Bd3 {[%clk 0:02:49]}  Nbd7 {[%clk 0:02:58]} 9. Qe2 {[%clk 0:02:47]}  e5 {[%clk 0:02:56]} 10. dxe5 {[%clk 0:02:48]}  Nxe5 {[%clk 0:02:56]} 11. Nxe5 {[%clk 0:02:49]}  Bxe5 {[%clk 0:02:56]} 12. Bxe5 {[%clk 0:02:49]}  Qxe5 {[%clk 0:02:55]} 13. Nf3 {[%clk 0:02:49]}  Qe7 {[%clk 0:02:55]} 14. h3 {[%clk 0:02:48]}  Re8 {[%clk 0:02:54]} 15. O-O {[%clk 0:02:48]}  Be6 {[%clk 0:02:54]} 16. Rfd1 {[%clk 0:02:43]}  h6 {[%clk 0:02:51]} 17. c4 {[%clk 0:02:36]}  a6 {[%clk 0:02:51]} 18. b3 {[%clk 0:02:35]}  Rad8 {[%clk 0:02:50]} 19. Rac1 {[%clk 0:02:31]}  Bd7 {[%clk 0:02:41]} 20. cxd5 {[%clk 0:02:04]}  Nxd5 {[%clk 0:02:41]} 21. Bxa6 {[%clk 0:01:50]}  Bc6 {[%clk 0:02:10]} 22. Bc4 {[%clk 0:01:44]}  b6 {[%clk 0:01:57]} 23. a4 {[%clk 0:01:44]}  Qf6 {[%clk 0:01:56]} 24. Rd3 {[%clk 0:01:13]}  Nf4 {[%clk 0:01:50]} 25. Qd1 {[%clk 0:01:13]}  Nxh3+ {[%clk 0:01:45]} 26. gxh3 {[%clk 0:01:10]}  Bxf3 {[%clk 0:01:44]} 27. Qf1 {[%clk 0:00:57]}  Qg6+ {[%clk 0:01:42]} 28. Kh2 {[%clk 0:00:57]}  Rxd3 {[%clk 0:01:42]} 29. Bxd3 {[%clk 0:00:57]}  Qd6+ {[%clk 0:01:42]} 30. Kg1 {[%clk 0:00:57]}  Re5 {[%clk 0:01:42]} 31. h4 {[%clk 0:00:51]}  Rh5 {[%clk 0:01:39]} 32. Qh3 {[%clk 0:00:47]}  Qxd3 {[%clk 0:01:20]} 33. Qxf3 {[%clk 0:00:47]}  Rxh4 {[%clk 0:01:20]} 34. Rd1 {[%clk 0:00:45]}  Qg6+ {[%clk 0:01:16]} 35. Kf1 {[%clk 0:00:44]}  Rg4 {[%clk 0:01:15]} 36. Ke2 {[%clk 0:00:41]}  Kh7 {[%clk 0:01:10]} 37. Rd2 {[%clk 0:00:37]}  Rb4 {[%clk 0:01:05]} 38. Qd5 {[%clk 0:00:32]}  Qg4+ {[%clk 0:01:02]} 39. Kf1 {[%clk 0:00:32]}  Qh3+ {[%clk 0:01:01]} 40. Ke2 {[%clk 0:00:32]}  Qg4+ {[%clk 0:00:56]} 41. Kf1 {[%clk 0:00:32]}  f5 {[%clk 0:00:54]} 42. Qf7 {[%clk 0:00:27]}  c4 {[%clk 0:00:47]} 43. Rd8 {[%clk 0:00:18]}  Rxb3 {[%clk 0:00:37]} 44. Qg8+ {[%clk 0:00:17]}  Kg6 {[%clk 0:00:37]} 45. Qe8+ {[%clk 0:00:11]}  Kg5 {[%clk 0:00:37]} 46. Qe7+ {[%clk 0:00:11]}  Kh5 {[%clk 0:00:37]} 47. Qf7+ {[%clk 0:00:11]}  g6 {[%clk 0:00:37]} 48. Ke1 {[%clk 0:00:03]}  Rb1+ {[%clk 0:00:36]} 49. Kd2 {[%clk 0:00:04]}  Rd1+ {[%clk 0:00:34]} 50. Kc3 {[%clk 0:00:04]}  Rxd8 {[%clk 0:00:34]} 51. Qe7 {[%clk 0:00:04]}  Rd3+ {[%clk 0:00:34]} 52. Kb4 {[%clk 0:00:04]}  c3+ {[%clk 0:00:34]} 53. Kb3 {[%clk 0:00:05]}  c2+ {[%clk 0:00:34]} 54. Kxc2 {[%clk 0:00:05]}  Qc4+ {[%clk 0:00:34]} 55. Kb2 {[%clk 0:00:06]}  Rb3+ {[%clk 0:00:35]} 56. Ka2 {[%clk 0:00:07]}  Qc2+ {[%clk 0:00:35]} 57. Ka1 {[%clk 0:00:06]}  Rb1# {[%clk 0:00:35]} 0-1


[Site "https://www.chess.com"]

[Event "Titled Tuesday Blitz March 08 Early 2022"]
[White "Jobava, Baadur"]
[Black "Gabdrakhmanov, Azat"]
[WhiteFideId "13601520"]
[BlackFideId "34189197"]
[WhiteElo "2617"]
[BlackElo "2279"]
[Result "1-0"]
[Round "02"]
[TimeControl "180+1"]
[Date "2022.03.08"]
[WhiteClock "0:00:31"]
[BlackClock "0:00:12"]

1. e4 {[%clk 0:02:36]}  c5 {[%clk 0:02:59]} 2. Nf3 {[%clk 0:02:34]}  e6 {[%clk 0:02:32]} 3. c4 {[%clk 0:02:28]}  Nc6 {[%clk 0:02:32]} 4. Nc3 {[%clk 0:02:28]}  Nf6 {[%clk 0:02:33]} 5. Be2 {[%clk 0:02:27]}  d6 {[%clk 0:02:33]} 6. d4 {[%clk 0:02:26]}  cxd4 {[%clk 0:02:34]} 7. Nxd4 {[%clk 0:02:27]}  Be7 {[%clk 0:02:34]} 8. Be3 {[%clk 0:02:28]}  O-O {[%clk 0:02:34]} 9. O-O {[%clk 0:02:28]}  Bd7 {[%clk 0:02:35]} 10. Nb3 {[%clk 0:02:26]}  a6 {[%clk 0:02:33]} 11. a4 {[%clk 0:02:25]}  Rc8 {[%clk 0:02:30]} 12. a5 {[%clk 0:02:24]}  Ne5 {[%clk 0:02:26]} 13. Nd2 {[%clk 0:02:21]}  Qc7 {[%clk 0:02:21]} 14. f4 {[%clk 0:02:18]}  Ng6 {[%clk 0:02:20]} 15. Kh1 {[%clk 0:02:16]}  Rfe8 {[%clk 0:02:17]} 16. g4 {[%clk 0:02:15]}  h6 {[%clk 0:02:02]} 17. Bf3 {[%clk 0:02:07]}  e5 {[%clk 0:01:49]} 18. f5 {[%clk 0:01:58]}  Nf4 {[%clk 0:01:49]} 19. h4 {[%clk 0:01:49]}  Nh7 {[%clk 0:01:42]} 20. Qe1 {[%clk 0:01:43]}  Qd8 {[%clk 0:01:40]} 21. g5 {[%clk 0:01:42]}  hxg5 {[%clk 0:01:36]} 22. Bb6 {[%clk 0:01:42]}  Rc7 {[%clk 0:01:34]} 23. h5 {[%clk 0:01:38]}  Qb8 {[%clk 0:01:24]} 24. Bxc7 {[%clk 0:01:38]}  Qxc7 {[%clk 0:01:25]} 25. Rg1 {[%clk 0:01:39]}  Qc5 {[%clk 0:01:15]} 26. b3 {[%clk 0:01:35]}  Bd8 {[%clk 0:00:53]} 27. Qg3 {[%clk 0:01:06]}  Qd4 {[%clk 0:00:33]} 28. Ndb1 {[%clk 0:00:59]}  Bc6 {[%clk 0:00:32]} 29. Ra2 {[%clk 0:00:59]}  Qc5 {[%clk 0:00:20]} 30. Nd5 {[%clk 0:00:57]}  Bxd5 {[%clk 0:00:19]} 31. cxd5 {[%clk 0:00:55]}  Bxa5 {[%clk 0:00:19]} 32. Rd1 {[%clk 0:00:44]}  Bb6 {[%clk 0:00:19]} 33. Nd2 {[%clk 0:00:40]}  Rc8 {[%clk 0:00:19]} 34. Nc4 {[%clk 0:00:40]}  Bd8 {[%clk 0:00:19]} 35. Qg1 {[%clk 0:00:38]}  b5 {[%clk 0:00:19]} 36. Qxc5 {[%clk 0:00:37]}  Rxc5 {[%clk 0:00:19]} 37. Nxd6 {[%clk 0:00:37]}  Nf6 {[%clk 0:00:13]} 38. Rxa6 {[%clk 0:00:31]}  Be7 {[%clk 0:00:13]} 39. Ra8+ {[%clk 0:00:31]}  Kh7 {[%clk 0:00:12]} 40. Nxf7 {[%clk 0:00:32]}  N6xh5 {[%clk 0:00:12]} 41. Rh8# {[%clk 0:00:31]} 1-0


[Site "https://www.chess.com"]